[Event "Live Chess"]
[Site "Chess.com"]
[Date "2023.05.20"]
[Round "-"]
[White "KeithArkell"]
[Black "AttackingSnowLeopard"]
[Result "1-0"]
[WhiteElo "2610"]
[BlackElo "2037"]
[TimeControl "300"]
[EndTime "9:56:52 PDT"]
[Termination "KeithArkell won by resignation"]

1. d4 {[%clk 0:04:56.6]} 1... d5 {[%clk 0:04:58.7]} 2. c4 {[%clk 0:04:54.9]}
2... c6 {[%clk 0:04:58.4]} 3. Nf3 {[%clk 0:04:53.2]} 3... Nf6 {[%clk 0:04:57]}
4. Nc3 {[%clk 0:04:50.7]} 4... dxc4 {[%clk 0:04:55.7]} 5. a4 {[%clk 0:04:49.2]}
5... Bf5 {[%clk 0:04:54.3]} 6. Nh4 {[%clk 0:04:48.3]} 6... e6 {[%clk 0:04:51.8]}
7. Nxf5 {[%clk 0:04:47.4]} 7... exf5 {[%clk 0:04:51.5]} 8. Bg5 {[%clk
0:04:46.6]} 8... Bb4 {[%clk 0:04:50]} 9. Bxf6 {[%clk 0:04:44.9]} 9... Qxf6
{[%clk 0:04:47.3]} 10. e3 {[%clk 0:04:44.3]} 10... O-O {[%clk 0:04:45]} 11. Bxc4
{[%clk 0:04:43.4]} 11... a5 {[%clk 0:04:41.6]} 12. O-O {[%clk 0:04:41.5]} 12...
Nd7 {[%clk 0:04:40.7]} 13. Qb3 {[%clk 0:04:31.8]} 13... Nb6 {[%clk 0:04:11.3]}
14. Be2 {[%clk 0:04:25.2]} 14... Qd6 {[%clk 0:03:52.9]} 15. g3 {[%clk
0:04:23.6]} 15... g6 {[%clk 0:03:46]} 16. Bf3 {[%clk 0:04:22.3]} 16... Kg7
{[%clk 0:03:43]} 17. Rad1 {[%clk 0:04:21.2]} 17... Rfd8 {[%clk 0:03:35.9]} 18.
Kg2 {[%clk 0:04:20.1]} 18... Rac8 {[%clk 0:03:28.8]} 19. h4 {[%clk 0:04:17.9]}
19... h5 {[%clk 0:03:26.6]} 20. d5 {[%clk 0:04:09.9]} 20... Nxd5 {[%clk
0:03:10.8]} 21. Nxd5 {[%clk 0:04:07.6]} 21... cxd5 {[%clk 0:03:10]} 22. Rxd5
{[%clk 0:04:06.3]} 22... Qe7 {[%clk 0:03:08.8]} 23. Rfd1 {[%clk 0:04:03.2]}
23... Rxd5 {[%clk 0:03:06.5]} 24. Qxd5 {[%clk 0:04:01.3]} 24... b6 {[%clk
0:03:01.4]} 25. Qd7 {[%clk 0:03:51.7]} 25... Qxd7 {[%clk 0:02:55.7]} 26. Rxd7
{[%clk 0:03:49.9]} 26... Re8 {[%clk 0:02:55.2]} 27. Rb7 {[%clk 0:03:47]} 27...
Bc5 {[%clk 0:02:51.4]} 28. b3 {[%clk 0:03:43.4]} 28... Re7 {[%clk 0:02:49.6]}
29. Rb8 {[%clk 0:03:42.7]} 29... Rd7 {[%clk 0:02:45.1]} 30. Bc6 {[%clk
0:03:39.5]} 30... Rd6 {[%clk 0:02:40.2]} 31. Bb5 {[%clk 0:03:38.4]} 31... Kf6
{[%clk 0:02:36.9]} 32. Rb7 {[%clk 0:03:37]} 32... Re6 {[%clk 0:02:33.8]} 33. Bc4
{[%clk 0:03:36.1]} 33... Re7 {[%clk 0:02:32.8]} 34. Rb8 {[%clk 0:03:35.6]} 34...
Kg7 {[%clk 0:02:31.5]} 35. Kf3 {[%clk 0:03:34.4]} 35... Kf6 {[%clk 0:02:30.7]}
36. Ke2 {[%clk 0:03:32]} 36... Kg7 {[%clk 0:02:29.8]} 37. Kd3 {[%clk 0:03:29]}
37... Kf6 {[%clk 0:02:28.8]} 38. Bd5 {[%clk 0:03:27.6]} 38... Ke5 {[%clk
0:02:20.3]} 39. Bf3 {[%clk 0:03:01.3]} 39... Kf6 {[%clk 0:02:15.8]} 40. Kc4
{[%clk 0:02:57.4]} 40... Rc7 {[%clk 0:02:12.6]} 41. Kb5 {[%clk 0:02:56.2]} 41...
Ke6 {[%clk 0:02:04.4]} 42. Rd8 {[%clk 0:02:51.1]} 42... Ke7 {[%clk 0:02:00.5]}
43. Rb8 {[%clk 0:02:41.6]} 43... Rd7 {[%clk 0:01:55]} 44. Be2 {[%clk 0:02:25.8]}
44... Rd2 {[%clk 0:01:48.7]} 45. Bc4 {[%clk 0:02:24.1]} 45... Rxf2 {[%clk
0:01:48.3]} 46. Rb7+ {[%clk 0:02:23.5]} 46... Kd6 {[%clk 0:01:45.8]} 47. Bxf7
{[%clk 0:02:21.1]} 47... Rf3 {[%clk 0:01:38.6]} 48. Bxg6 {[%clk 0:02:19]} 48...
Rxe3 {[%clk 0:01:35.2]} 49. Bxf5 {[%clk 0:02:14.2]} 49... Rxb3+ {[%clk 0:01:31]}
50. Ka6 {[%clk 0:02:13.4]} 50... Rxg3 {[%clk 0:01:26.2]} 51. Rh7 {[%clk
0:02:11.9]} 51... Ra3 {[%clk 0:01:11.1]} 52. Bd7 {[%clk 0:02:07.6]} 52... Bf2
{[%clk 0:01:05.1]} 53. Bb5 {[%clk 0:02:00.6]} 53... Rh3 {[%clk 0:00:57.4]} 54.
Rh6+ {[%clk 0:01:58.2]} 54... Ke7 {[%clk 0:00:54.1]} 55. Rxh5 {[%clk 0:01:51.5]}
55... Rxh4 {[%clk 0:00:53.2]} 56. Re5+ {[%clk 0:01:50.4]} 56... Kd6 {[%clk
0:00:51.9]} 57. Re2 {[%clk 0:01:49.1]} 57... Bc5 {[%clk 0:00:51.3]} 58. Rd2+
{[%clk 0:01:48.2]} 58... Ke5 {[%clk 0:00:48.5]} 59. Bc6 {[%clk 0:01:45.9]} 59...
Rh6 {[%clk 0:00:47.3]} 60. Kb5 {[%clk 0:01:43.5]} 60... Rh4 {[%clk 0:00:46.5]}
61. Rd5+ {[%clk 0:01:42.4]} 61... Ke6 {[%clk 0:00:45.4]} 62. Rd8 {[%clk
0:01:40]} 62... Rb4+ {[%clk 0:00:44.4]} 63. Ka6 {[%clk 0:01:38.7]} 63... Rh4
{[%clk 0:00:44.3]} 64. Bb5 {[%clk 0:01:35.2]} 64... Rh7 {[%clk 0:00:42.7]} 65.
Rd2 {[%clk 0:01:32.3]} 65... Re7 {[%clk 0:00:41]} 66. Bc4+ {[%clk 0:01:29.4]}
66... Kf6 {[%clk 0:00:39.9]} 67. Kb5 {[%clk 0:01:25.9]} 67... Rc7 {[%clk
0:00:37.3]} 68. Rd3 {[%clk 0:01:22.7]} 68... Bb4 {[%clk 0:00:36.3]} 69. Bd5
{[%clk 0:01:17.2]} 69... Bc5 {[%clk 0:00:34.3]} 70. Bc6 {[%clk 0:01:13.3]} 70...
Ke5 {[%clk 0:00:33.6]} 71. Rd5+ {[%clk 0:01:12]} 71... Ke6 {[%clk 0:00:32.2]}
72. Rh5 {[%clk 0:01:09.2]} 72... Kd6 {[%clk 0:00:31.1]} 73. Rh6+ {[%clk
0:01:08.4]} 73... Ke5 {[%clk 0:00:30.7]} 74. Rh1 {[%clk 0:01:01]} 74... Be3
{[%clk 0:00:29.3]} 75. Re1 {[%clk 0:00:59]} 75... Kd4 {[%clk 0:00:28.9]} 76.
Kxb6 {[%clk 0:00:56.4]} 76... Rg7 {[%clk 0:00:23.3]} 77. Rd1+ {[%clk 0:00:53.1]}
77... Kc3+ {[%clk 0:00:20]} 78. Kxa5 {[%clk 0:00:49.6]} 78... Rg5+ {[%clk
0:00:18.1]} 79. Ka6 {[%clk 0:00:48.3]} 79... Rg6 {[%clk 0:00:17.8]} 80. Kb7
{[%clk 0:00:45.2]} 80... Kb4 {[%clk 0:00:17.5]} 81. Bb5 {[%clk 0:00:43.4]} 81...
Rb6+ {[%clk 0:00:16.6]} 82. Kc7 {[%clk 0:00:42.7]} 82... Rxb5 {[%clk 0:00:16.1]}
83. axb5 {[%clk 0:00:41.3]} 83... Kxb5 {[%clk 0:00:16]} 84. Rd3 {[%clk
0:00:38.7]} 84... Bc5 {[%clk 0:00:14.6]} 85. Rd5 {[%clk 0:00:37.5]} 85... Kc4
{[%clk 0:00:14.3]} 86. Kc6 {[%clk 0:00:36.7]} 86... Kb4 {[%clk 0:00:12.9]} 87.
Rd1 {[%clk 0:00:35.3]} 87... Bf2 {[%clk 0:00:11.5]} 88. Rb1+ {[%clk 0:00:34.4]}
88... Kc3 {[%clk 0:00:11]} 89. Kd5 {[%clk 0:00:32.9]} 89... Kd2 {[%clk
0:00:10.6]} 90. Rb2+ {[%clk 0:00:32]} 90... Ke1 {[%clk 0:00:09.8]} 91. Ke4
{[%clk 0:00:31.2]} 91... Kf1 {[%clk 0:00:09.4]} 92. Kf3 {[%clk 0:00:30.2]} 92...
Kg1 {[%clk 0:00:09.1]} 93. Rb1+ {[%clk 0:00:29.2]} 93... Kh2 {[%clk 0:00:08.1]}
94. Kxf2 {[%clk 0:00:28.4]} 1-0

[Event "Live Chess"]
[Site "Chess.com"]
[Date "2023.05.20"]
[Round "-"]
[White "Ayush_prahlad_Gupta"]
[Black "Ra2orLeaf"]
[Result "1-0"]
[WhiteElo "1800"]
[BlackElo "1147"]
[TimeControl "300"]
[EndTime "9:56:52 PDT"]
[Termination "Ayush_prahlad_Gupta won on time"]

1. e4 {[%clk 0:04:58.2]} 1... c5 {[%clk 0:04:59.6]} 2. Nc3 {[%clk 0:04:58.1]}
2... Nc6 {[%clk 0:04:59.2]} 3. Bc4 {[%clk 0:04:58]} 3... e6 {[%clk 0:04:58.5]}
4. Nf3 {[%clk 0:04:56.5]} 4... a6 {[%clk 0:04:58.1]} 5. a4 {[%clk 0:04:55.4]}
5... Nge7 {[%clk 0:04:52.1]} 6. d4 {[%clk 0:04:54.4]} 6... cxd4 {[%clk
0:04:50.9]} 7. Qxd4 {[%clk 0:04:54.3]} 7... Nxd4 {[%clk 0:04:47.9]} 8. Nxd4
{[%clk 0:04:53.5]} 8... g6 {[%clk 0:04:44.2]} 9. Nf3 {[%clk 0:04:45.5]} 9... Bg7
{[%clk 0:04:35.3]} 10. h4 {[%clk 0:04:15.6]} 10... h5 {[%clk 0:04:24.8]} 11. Bd2
{[%clk 0:03:58.3]} 11... d5 {[%clk 0:04:16.4]} 12. exd5 {[%clk 0:03:57.1]} 12...
exd5 {[%clk 0:04:16.3]} 13. Bb3 {[%clk 0:03:56]} 13... d4 {[%clk 0:04:06]} 14.
Ne4 {[%clk 0:03:54.3]} 14... O-O {[%clk 0:03:58.9]} 15. O-O-O {[%clk 0:03:46.8]}
15... Bg4 {[%clk 0:03:57]} 16. Bb4 {[%clk 0:03:44.3]} 16... Nc6 {[%clk
0:03:50.5]} 17. Bxf8 {[%clk 0:03:41.8]} 17... Kxf8 {[%clk 0:03:35.8]} 18. Neg5
{[%clk 0:03:40]} 18... Bxf3 {[%clk 0:03:03.4]} 19. gxf3 {[%clk 0:03:39.9]} 19...
Ne5 {[%clk 0:02:11.7]} 20. f4 {[%clk 0:03:36.2]} 20... Ng4 {[%clk 0:01:43.2]}
21. Nxf7 {[%clk 0:03:31.1]} 21... Qf6 {[%clk 0:01:31.9]} 22. Rhf1 {[%clk
0:03:21]} 22... d3 {[%clk 0:01:17.9]} 23. Rxd3 {[%clk 0:03:15.1]} 23... Qxb2+
{[%clk 0:01:14.9]} 24. Kd2 {[%clk 0:03:12.6]} 24... Nf6 {[%clk 0:00:45.1]} 25.
Ng5 {[%clk 0:03:11]} 25... Re8 {[%clk 0:00:31.6]} 26. Ne6+ {[%clk 0:02:55.3]}
26... Kg8 {[%clk 0:00:19.2]} 27. Nc7+ {[%clk 0:02:43.9]} 27... Kh7 {[%clk
0:00:14.5]} 28. Nxe8 {[%clk 0:02:41.7]} 28... Nxe8 {[%clk 0:00:12.9]} 29. Re1
{[%clk 0:02:40]} 29... Nf6 {[%clk 0:00:12.2]} 30. Re7 {[%clk 0:02:37.8]} 30...
Ng4 {[%clk 0:00:08.1]} 31. Rdd7 {[%clk 0:02:34]} 31... Nxf2 {[%clk 0:00:05.9]}
32. Rxg7+ {[%clk 0:02:31.7]} 32... Qxg7 {[%clk 0:00:05.8]} 33. Rxg7+ {[%clk
0:02:30.4]} 33... Kxg7 {[%clk 0:00:05.7]} 34. Ke3 {[%clk 0:02:29.6]} 34... Ng4+
{[%clk 0:00:04.9]} 35. Kf3 {[%clk 0:02:28.1]} 35... Kf6 {[%clk 0:00:04.2]} 36.
c4 {[%clk 0:02:26.2]} 36... Ke6 {[%clk 0:00:03.6]} 37. Ke4 {[%clk 0:02:25.1]}
37... Kd6 {[%clk 0:00:02.5]} 38. Bc2 {[%clk 0:02:22.4]} 38... b6 {[%clk
0:00:01.2]} 39. Bb3 {[%clk 0:02:21]} 39... a5 {[%clk 0:00:00.3]} 40. Kf3 {[%clk
0:02:18.5]} 1-0

[Event "Live Chess"]
[Site "Chess.com"]
[Date "2023.05.20"]
[Round "-"]
[White "mementoluna"]
[Black "SupremeTactician"]
[Result "0-1"]
[WhiteElo "1043"]
[BlackElo "2409"]
[TimeControl "300"]
[EndTime "9:57:00 PDT"]
[Termination "SupremeTactician won by resignation"]

1. c4 {[%clk 0:04:53.1]} 1... c5 {[%clk 0:04:59.2]} 2. Nc3 {[%clk 0:04:52.4]}
2... Nc6 {[%clk 0:04:58.6]} 3. e3 {[%clk 0:04:52]} 3... g6 {[%clk 0:04:57.4]} 4.
Nge2 {[%clk 0:04:51.2]} 4... Bg7 {[%clk 0:04:56.5]} 5. b3 {[%clk 0:04:49.6]}
5... d6 {[%clk 0:04:55.2]} 6. g3 {[%clk 0:04:48.6]} 6... Ne5 {[%clk 0:04:52.4]}
7. Bg2 {[%clk 0:04:42.9]} 7... Nd3+ {[%clk 0:04:50.9]} 8. Kf1 {[%clk 0:04:40.8]}
8... Nxc1 {[%clk 0:04:42.3]} 9. Qxc1 {[%clk 0:04:39.5]} 9... Nf6 {[%clk
0:04:40]} 10. Bf3 {[%clk 0:04:35.5]} 10... O-O {[%clk 0:04:38.3]} 11. Kg2 {[%clk
0:04:35.2]} 11... Qd7 {[%clk 0:04:34.2]} 12. Nf4 {[%clk 0:04:30]} 12... Rb8
{[%clk 0:04:21.8]} 13. d4 {[%clk 0:04:19.4]} 13... cxd4 {[%clk 0:04:12.9]} 14.
exd4 {[%clk 0:04:16.6]} 14... e6 {[%clk 0:03:49.2]} 15. d5 {[%clk 0:04:07.9]}
15... e5 {[%clk 0:03:45]} 16. Nfe2 {[%clk 0:03:57.9]} 16... Qh3+ {[%clk
0:03:39]} 17. Kg1 {[%clk 0:03:56.1]} 17... Bd7 {[%clk 0:03:00]} 18. Bg2 {[%clk
0:03:50.7]} 18... Qf5 {[%clk 0:02:53.8]} 19. Qe3 {[%clk 0:03:39.7]} 19... Ng4
{[%clk 0:02:48]} 20. Qxa7 {[%clk 0:03:27.4]} 20... Ra8 {[%clk 0:02:40]} 21. Qb6
{[%clk 0:03:23.8]} 21... Ra6 {[%clk 0:02:38.7]} 0-1

[Event "Live Chess"]
[Site "Chess.com"]
[Date "2023.05.20"]
[Round "-"]
[White "AwesomeFredster"]
[Black "PureMellowPlan"]
[Result "1/2-1/2"]
[WhiteElo "1445"]
[BlackElo "629"]
[TimeControl "300"]
[EndTime "9:57:02 PDT"]
[Termination "Game drawn by repetition"]

1. e4 {[%clk 0:04:58]} 1... e5 {[%clk 0:04:57.8]} 2. Nf3 {[%clk 0:04:56.7]} 2...
Nc6 {[%clk 0:04:55.9]} 3. Bc4 {[%clk 0:04:55.5]} 3... h6 {[%clk 0:04:53.1]} 4.
Nc3 {[%clk 0:04:51.3]} 4... Nf6 {[%clk 0:04:52]} 5. d3 {[%clk 0:04:48]} 5... Bb4
{[%clk 0:04:50.7]} 6. Be3 {[%clk 0:04:44.3]} 6... Bxc3+ {[%clk 0:04:46.8]} 7.
bxc3 {[%clk 0:04:44.2]} 7... d6 {[%clk 0:04:44.2]} 8. d4 {[%clk 0:04:43.3]} 8...
exd4 {[%clk 0:04:42.5]} 9. cxd4 {[%clk 0:04:42.4]} 9... O-O {[%clk 0:04:39.9]}
10. Nd2 {[%clk 0:04:29.6]} 10... Re8 {[%clk 0:04:35.7]} 11. Qf3 {[%clk
0:04:23.5]} 11... b6 {[%clk 0:04:26]} 12. Qg3 {[%clk 0:04:12.4]} 12... Qd7
{[%clk 0:04:05.9]} 13. Bxh6 {[%clk 0:04:06.4]} 13... Qg4 {[%clk 0:04:02.9]} 14.
Qxg4 {[%clk 0:04:00.4]} 14... Bxg4 {[%clk 0:04:00.5]} 15. h3 {[%clk 0:03:52.3]}
15... Be6 {[%clk 0:03:57.2]} 16. Be3 {[%clk 0:03:48.1]} 16... Bxc4 {[%clk
0:03:55.6]} 17. Nxc4 {[%clk 0:03:43.5]} 17... Rxe4 {[%clk 0:03:51]} 18. O-O
{[%clk 0:03:36.5]} 18... Nxd4 {[%clk 0:03:48.8]} 19. Bxd4 {[%clk 0:03:34.4]}
19... Rxd4 {[%clk 0:03:47.8]} 20. Ne3 {[%clk 0:03:33.8]} 20... Nd5 {[%clk
0:03:44.7]} 21. Nxd5 {[%clk 0:03:32.2]} 21... Rxd5 {[%clk 0:03:43.8]} 22. c4
{[%clk 0:03:31.2]} 22... Rc5 {[%clk 0:03:42.1]} 23. Rac1 {[%clk 0:03:29.4]}
23... Re8 {[%clk 0:03:40.3]} 24. Rfd1 {[%clk 0:03:24]} 24... Re4 {[%clk
0:03:37.5]} 25. Rd2 {[%clk 0:03:16.8]} 25... Rexc4 {[%clk 0:03:36.2]} 26. Rxc4
{[%clk 0:03:15.4]} 26... Rxc4 {[%clk 0:03:35.4]} 27. Re2 {[%clk 0:03:14.3]}
27... Rc1+ {[%clk 0:03:33.7]} 28. Kh2 {[%clk 0:03:12.9]} 28... d5 {[%clk
0:03:32.3]} 29. Re7 {[%clk 0:03:11.9]} 29... d4 {[%clk 0:03:30.4]} 30. Rd7
{[%clk 0:03:10.9]} 30... c5 {[%clk 0:03:28.4]} 31. Rxa7 {[%clk 0:03:09.1]} 31...
c4 {[%clk 0:03:26.7]} 32. Ra8+ {[%clk 0:03:07.7]} 32... Kh7 {[%clk 0:03:24.7]}
33. Rd8 {[%clk 0:03:07.2]} 33... d3 {[%clk 0:03:23.3]} 34. Rd4 {[%clk
0:03:05.8]} 34... c3 {[%clk 0:03:14.1]} 35. Rxd3 {[%clk 0:03:04.3]} 35... c2
{[%clk 0:03:13.2]} 36. Rc3 {[%clk 0:03:01.3]} 36... b5 {[%clk 0:03:10.8]} 37.
Kg3 {[%clk 0:03:00.3]} 37... b4 {[%clk 0:03:09.9]} 38. Rc4 {[%clk 0:02:58.6]}
38... Kg6 {[%clk 0:03:09]} 39. Kf3 {[%clk 0:02:57.5]} 39... Kf5 {[%clk
0:03:08.2]} 40. Ke2 {[%clk 0:02:57.1]} 40... Ke5 {[%clk 0:03:05.6]} 41. Kd2
{[%clk 0:02:56.4]} 41... Rf1 {[%clk 0:03:03.3]} 42. Kxc2 {[%clk 0:02:47.7]}
42... Rxf2+ {[%clk 0:03:02.1]} 43. Kb3 {[%clk 0:02:47.2]} 43... Rxg2 {[%clk
0:03:00.7]} 44. Kxb4 {[%clk 0:02:40.1]} 44... Rxa2 {[%clk 0:02:57.4]} 45. Rc5+
{[%clk 0:02:38.7]} 45... Ke6 {[%clk 0:02:54.5]} 46. Rc6+ {[%clk 0:02:37.8]}
46... Ke7 {[%clk 0:02:53.2]} 47. Rc7+ {[%clk 0:02:37]} 47... Kd6 {[%clk
0:02:52.2]} 48. Rxf7 {[%clk 0:02:35.9]} 48... g5 {[%clk 0:02:50.2]} 49. Rg7
{[%clk 0:02:34.9]} 49... Rg2 {[%clk 0:02:48.1]} 50. Rg6+ {[%clk 0:02:33]} 50...
Ke5 {[%clk 0:02:45.9]} 51. Kc3 {[%clk 0:02:28.2]} 51... Rg3+ {[%clk 0:02:42.5]}
52. Kd2 {[%clk 0:02:26.5]} 52... Rxh3 {[%clk 0:02:40.3]} 53. Ke2 {[%clk
0:02:25.3]} 53... Kf4 {[%clk 0:02:38.4]} 54. Kf2 {[%clk 0:02:24]} 54... Rh2+
{[%clk 0:02:36.5]} 55. Kg1 {[%clk 0:02:21.5]} 55... Rh3 {[%clk 0:02:33.9]} 56.
Rg8 {[%clk 0:02:19.2]} 56... g4 {[%clk 0:02:33]} 57. Ra8 {[%clk 0:02:14.7]}
57... Kf3 {[%clk 0:02:30.1]} 58. Ra2 {[%clk 0:02:14]} 58... Rg3+ {[%clk
0:02:27.1]} 59. Kh2 {[%clk 0:02:12.2]} 59... Rh3+ {[%clk 0:02:25.4]} 60. Kg1
{[%clk 0:02:11.4]} 60... g3 {[%clk 0:02:23.3]} 61. Ra3+ {[%clk 0:02:05.4]} 61...
Kg4 {[%clk 0:02:19.7]} 62. Ra4+ {[%clk 0:02:03.1]} 62... Kf3 {[%clk 0:02:18.1]}
63. Ra3+ {[%clk 0:02:02.3]} 63... Ke2 {[%clk 0:02:16.7]} 64. Ra2+ {[%clk
0:01:59]} 64... Kd3 {[%clk 0:02:15.3]} 65. Ra3+ {[%clk 0:01:57.8]} 65... Kc2
{[%clk 0:02:14.5]} 66. Ra2+ {[%clk 0:01:56.9]} 66... Kb3 {[%clk 0:02:13.4]} 67.
Rg2 {[%clk 0:01:56.2]} 67... Kc3 {[%clk 0:02:11.3]} 68. Kf1 {[%clk 0:01:53]}
68... Kd3 {[%clk 0:02:10.3]} 69. Kg1 {[%clk 0:01:51.8]} 69... Ke3 {[%clk
0:02:09.3]} 70. Ra2 {[%clk 0:01:51]} 70... Kf3 {[%clk 0:02:03.4]} 71. Ra3+
{[%clk 0:01:50.2]} 1/2-1/2

[Event "Live Chess"]
[Site "Chess.com"]
[Date "2023.05.20"]
[Round "-"]
[White "MaximKris"]
[Black "risinghelios"]
[Result "1-0"]
[WhiteElo "1845"]
[BlackElo "1954"]
[TimeControl "300"]
[EndTime "9:57:20 PDT"]
[Termination "MaximKris won by resignation"]

1. e4 {[%clk 0:04:58.2]} 1... c5 {[%clk 0:04:55.3]} 2. Nf3 {[%clk 0:04:56.5]}
2... Nc6 {[%clk 0:04:53]} 3. Bb5 {[%clk 0:04:54.6]} 3... g6 {[%clk 0:04:52.3]}
4. O-O {[%clk 0:04:52.8]} 4... Bg7 {[%clk 0:04:51.4]} 5. Re1 {[%clk 0:04:51.4]}
5... Nf6 {[%clk 0:04:50.4]} 6. c3 {[%clk 0:04:50.3]} 6... O-O {[%clk 0:04:49.6]}
7. Bxc6 {[%clk 0:04:49.4]} 7... bxc6 {[%clk 0:04:48.6]} 8. d4 {[%clk 0:04:49]}
8... cxd4 {[%clk 0:04:47.9]} 9. cxd4 {[%clk 0:04:48.7]} 9... d5 {[%clk
0:04:47.2]} 10. e5 {[%clk 0:04:47.3]} 10... Nd7 {[%clk 0:04:46.3]} 11. Nc3
{[%clk 0:04:46.3]} 11... e6 {[%clk 0:04:44.8]} 12. b4 {[%clk 0:04:40.6]} 12...
Qb6 {[%clk 0:04:42.7]} 13. a3 {[%clk 0:04:30]} 13... a5 {[%clk 0:04:41.4]} 14.
Na4 {[%clk 0:04:06.3]} 14... Qb5 {[%clk 0:04:36.7]} 15. Nc5 {[%clk 0:04:04.4]}
15... axb4 {[%clk 0:04:34.1]} 16. a4 {[%clk 0:04:03.1]} 16... Qc4 {[%clk
0:04:31.5]} 17. Nxd7 {[%clk 0:03:57.4]} 17... Bxd7 {[%clk 0:04:21.6]} 18. Re3
{[%clk 0:03:42]} 18... c5 {[%clk 0:04:11.5]} 19. dxc5 {[%clk 0:03:36.5]} 19...
Qxc5 {[%clk 0:04:05]} 20. Bb2 {[%clk 0:03:08.3]} 20... Rfc8 {[%clk 0:03:59.9]}
21. Bd4 {[%clk 0:03:02.7]} 21... Qc4 {[%clk 0:03:54.8]} 22. a5 {[%clk
0:02:56.6]} 22... Qc2 {[%clk 0:03:47]} 23. Qxc2 {[%clk 0:02:51.9]} 23... Rxc2
{[%clk 0:03:46.9]} 24. Rb3 {[%clk 0:02:48.4]} 24... Rac8 {[%clk 0:03:42.9]} 25.
h3 {[%clk 0:02:33.4]} 25... Rc1+ {[%clk 0:03:32.1]} 26. Rxc1 {[%clk 0:02:30.1]}
26... Rxc1+ {[%clk 0:03:32]} 27. Kh2 {[%clk 0:02:28.5]} 27... Ra1 {[%clk
0:03:29.4]} 28. Bxa1 {[%clk 0:02:26.5]} 28... Bc8 {[%clk 0:03:27.1]} 29. Rxb4
{[%clk 0:02:25.3]} 1-0

[Event "Live Chess"]
[Site "Chess.com"]
[Date "2023.05.20"]
[Round "-"]
[White "toog"]
[Black "ramses-IIG"]
[Result "1-0"]
[WhiteElo "2629"]
[BlackElo "744"]
[TimeControl "300"]
[EndTime "9:57:29 PDT"]
[Termination "toog won by resignation"]

1. b4 {[%clk 0:04:57.4]} 1... d5 {[%clk 0:04:59.9]} 2. Bb2 {[%clk 0:04:55.8]}
2... Nc6 {[%clk 0:04:57.1]} 3. b5 {[%clk 0:04:53.5]} 3... Nb8 {[%clk 0:04:55.6]}
4. Nf3 {[%clk 0:04:51]} 4... Qd7 {[%clk 0:04:53.2]} 5. e3 {[%clk 0:04:48.8]}
5... c6 {[%clk 0:04:49]} 6. a4 {[%clk 0:04:47]} 6... cxb5 {[%clk 0:04:47.5]} 7.
Bxb5 {[%clk 0:04:43.9]} 7... Nc6 {[%clk 0:04:44.7]} 8. Ne5 {[%clk 0:04:41.6]}
8... e6 {[%clk 0:04:34.2]} 9. Nxd7 {[%clk 0:04:40]} 9... Bxd7 {[%clk 0:04:29]}
10. O-O {[%clk 0:04:39.5]} 10... Nb4 {[%clk 0:04:22.9]} 11. Bxd7+ {[%clk
0:04:32.6]} 11... Kxd7 {[%clk 0:04:22.8]} 12. Qe2 {[%clk 0:04:27.2]} 12... f6
{[%clk 0:04:21]} 13. Qb5+ {[%clk 0:04:24.7]} 13... Nc6 {[%clk 0:04:20.2]} 14.
Qxb7+ {[%clk 0:04:23.6]} 14... Kd6 {[%clk 0:04:14.5]} 15. Qxa8 {[%clk
0:04:21.6]} 1-0

[Event "Live Chess"]
[Site "Chess.com"]
[Date "2023.05.20"]
[Round "-"]
[White "elizaveta_frundina"]
[Black "wot-not"]
[Result "1-0"]
[WhiteElo "1525"]
[BlackElo "1475"]
[TimeControl "300"]
[EndTime "9:57:35 PDT"]
[Termination "elizaveta_frundina won by resignation"]

1. e4 {[%clk 0:04:55.9]} 1... e5 {[%clk 0:04:59.1]} 2. Nf3 {[%clk 0:04:54.2]}
2... d6 {[%clk 0:04:58.4]} 3. d4 {[%clk 0:04:53.3]} 3... f5 {[%clk 0:04:57.3]}
4. Bd3 {[%clk 0:04:47.2]} 4... fxe4 {[%clk 0:04:55.8]} 5. Bxe4 {[%clk
0:04:46.3]} 5... d5 {[%clk 0:04:55.3]} 6. Bd3 {[%clk 0:04:28.7]} 6... e4 {[%clk
0:04:53.6]} 7. Qe2 {[%clk 0:04:27.4]} 7... Nf6 {[%clk 0:04:40.9]} 8. Ng1 {[%clk
0:04:06.7]} 8... Be7 {[%clk 0:04:31.4]} 9. Bb5+ {[%clk 0:04:02.7]} 9... c6
{[%clk 0:04:30.8]} 10. Ba4 {[%clk 0:04:01.6]} 10... O-O {[%clk 0:04:29.8]} 11.
Nc3 {[%clk 0:03:57.8]} 11... Bg4 {[%clk 0:04:18.4]} 12. f3 {[%clk 0:03:55]}
12... Bh5 {[%clk 0:04:15.3]} 13. Nh3 {[%clk 0:03:51]} 13... Nbd7 {[%clk
0:03:50.1]} 14. Nf4 {[%clk 0:03:44.5]} 14... exf3 {[%clk 0:03:42.1]} 15. gxf3
{[%clk 0:03:38.7]} 15... Bf7 {[%clk 0:03:38.3]} 16. Ne6 {[%clk 0:03:17.7]} 16...
Bxe6 {[%clk 0:03:34.3]} 17. Qxe6+ {[%clk 0:03:15.5]} 17... Kh8 {[%clk
0:03:32.5]} 18. Rg1 {[%clk 0:03:14.3]} 18... Bb4 {[%clk 0:03:20.4]} 19. Be3
{[%clk 0:03:04]} 19... Re8 {[%clk 0:02:57.2]} 20. Qf7 {[%clk 0:02:58.1]} 20...
Qe7 {[%clk 0:02:40.4]} 21. Qxe7 {[%clk 0:02:43.5]} 21... Rxe7 {[%clk 0:02:39.5]}
22. Kd2 {[%clk 0:02:36.3]} 22... Bxc3+ {[%clk 0:02:36.4]} 23. bxc3 {[%clk
0:02:34.9]} 23... Nb6 {[%clk 0:02:35.4]} 24. Bb3 {[%clk 0:02:33]} 24... Rae8
{[%clk 0:02:33.6]} 25. Rae1 {[%clk 0:02:28.8]} 25... a5 {[%clk 0:02:29]} 26. a3
{[%clk 0:02:24.9]} 26... Nfd7 {[%clk 0:01:54]} 27. Bg5 {[%clk 0:02:17.8]} 27...
Rf7 {[%clk 0:01:51.9]} 28. Rxe8+ {[%clk 0:02:14.9]} 1-0